fUST/lending_fUST_20250314
["ID","MTS","AMOUNT","RATE_DAILY","PERIOD"]
[356095802,1741895448053,-2402.59,0.00014246,2]
[356095803,1741895448063,-500.0,0.00014246,2]
[356095804,1741895448073,-500.0,0.00014246,2]
[356095805,1741895448083,-582.96,0.00014246,2]
[356095806,1741895448092,-500.0,0.00014246,2]
[356095807,1741895448102,-500.0,0.00014246,2]
[356095808,1741895448111,-500.0,0.00014246,2]
[356095809,1741895448121,-500.0,0.00014246,2]
[356095810,1741895448130,-1430.69,0.00014246,2]
[356095811,1741895448142,-500.0,0.00014246,2]
[356095812,1741895448151,-500.0,0.00014246,2]
[356095813,1741895448161,-500.0,0.00014246,2]
[356095814,1741895448171,-530.85983717,0.00014246,2]
[356095815,1741895448180,-500.0,0.00014246,2]
[356095816,1741895448190,-740.21,0.00014246,2]
[356095817,1741895448199,-573.0,0.00014246,2]
[356095818,1741895448208,-987.01,0.00014246,2]
[356095819,1741895448218,-500.0,0.00014246,2]
[356095820,1741895448227,-500.0,0.00014246,2]
[356095821,1741895448237,-15058.52,0.00014246,2]
[356095822,1741895448246,-500.0,0.00014246,2]
[356095823,1741895448256,-496.45655699,0.00014246,2]
[356095824,1741895448265,-601.56367863,0.00014246,2]
[356095825,1741895448275,-500.0,0.00014246,2]
[356095826,1741895448284,-744.73,0.00014246,2]
[356095827,1741895448294,-500.0,0.00014246,2]
[356095828,1741895448304,-500.0,0.00014246,2]
[356095829,1741895448313,-500.0,0.00014246,2]
[356095830,1741895448323,-500.0,0.00014246,2]
[356095831,1741895448333,-500.0,0.00014246,2]
[356095832,1741895448343,-1830.51,0.00014246,2]
[356095833,1741895448353,-500.0,0.00014246,2]
[356095834,1741895448362,-632.64,0.00014246,2]
[356095835,1741895448372,-11604.78,0.00014246,2]
[356095836,1741895448383,-500.0,0.00014246,2]
[356095837,1741895448395,-1332.45,0.00014246,2]
[356095838,1741895448405,-4554.61,0.00014246,2]
[356095839,1741895448415,-1636.96,0.00014246,2]
[356095840,1741895448425,-500.0,0.00014246,2]
[356095841,1741895448435,-500.0,0.00014246,2]
[356095842,1741895448445,-6214.93,0.00014246,2]
[356095843,1741895448455,-500.0,0.00014246,2]
[356095844,1741895448464,-864.97,0.00014246,2]
[356095845,1741895448474,-500.0,0.00014246,2]
[356095846,1741895448483,-500.0,0.00014246,2]
[356095847,1741895448493,-1420.88,0.00014246,2]
[356095848,1741895448503,-2190.28,0.00014246,2]
[356095849,1741895448513,-2950.76,0.00014246,2]
[356095850,1741895448523,-3526.3,0.00014246,2]
[356095851,1741895448533,-500.0,0.00014246,2]
[356095852,1741895448543,-210389.0,0.00014246,2]
[356095853,1741895448552,-2632.72,0.00014246,2]
[356095854,1741895448563,-1162.99,0.00014246,2]
[356095855,1741895448572,-3048.5,0.00014246,2]
[356095856,1741895448582,-500.0,0.00014246,2]
[356095857,1741895448591,-1963.71,0.00014246,2]
[356095858,1741895448601,-2357.94,0.00014246,2]
[356095859,1741895448610,-500.0,0.00014246,2]
[356095860,1741895448620,-2519.23,0.00014246,2]
[356095861,1741895448629,-4374.59,0.00014246,2]
[356095862,1741895448640,-618.04,0.00014246,2]
[356095863,1741895448650,-899.38,0.00014246,2]
[356095864,1741895448660,-500.0,0.00014246,2]
[356095865,1741895448672,-500.0,0.00014246,2]
[356095866,1741895448684,-500.0,0.00014246,2]
[356095867,1741895448694,-1679.95,0.00014246,2]
[356095868,1741895448703,-500.0,0.00014246,2]
[356095869,1741895448714,-500.0,0.00014246,2]
[356095870,1741895448723,-500.0,0.00014246,2]
[356095871,1741895448733,-500.0,0.00014246,2]
[356095872,1741895448742,-500.0,0.00014246,2]
[356095873,1741895448753,-500.0,0.00014246,2]
[356095874,1741895448763,-555.83206164,0.00014246,2]
[356095875,1741895448773,-500.0,0.00014246,2]
[356095876,1741895448783,-1770.04,0.00014246,2]
[356095877,1741895448793,-913.15,0.00014246,2]
[356095878,1741895448802,-500.0,0.00014246,2]
[356095879,1741895448811,-499.85276344,0.00014246,2]
[356095880,1741895448821,-744.61,0.00014246,2]
[356095881,1741895448831,-12057.96,0.00014246,2]
[356095882,1741895448841,-500.0,0.00014246,2]
[356095883,1741895448851,-3085.32,0.00014246,2]
[356095884,1741895448860,-500.0,0.00014246,2]
[356095885,1741895448870,-500.0,0.00014246,2]
[356095886,1741895448880,-1618.87,0.00014246,2]
[356095887,1741895448890,-500.0,0.00014246,2]
[356095888,1741895448900,-500.0,0.00014246,2]
[356095889,1741895448910,-500.0,0.00014246,2]
[356095890,1741895448919,-997.3,0.00014246,2]
[356095891,1741895448930,-500.0,0.00014246,2]
[356095892,1741895448939,-7519.49,0.00014246,2]
[356095893,1741895448949,-500.0,0.00014246,2]
[356095894,1741895448960,-500.0,0.00014246,2]
[356095895,1741895448970,-2113.91,0.00014246,2]
[356095896,1741895448980,-500.0,0.00014246,2]
[356095897,1741895448990,-500.0,0.00014246,2]
[356095898,1741895449000,-500.0,0.00014246,2]
[356095899,1741895449011,-500.0,0.00014246,2]
[356095900,1741895449021,-500.0,0.00014246,2]
[356095901,1741895449032,-500.0,0.00014246,2]
[356095902,1741895449042,-500.0,0.00014246,2]
[356095903,1741895449052,-500.0,0.00014246,2]
[356095904,1741895449062,-6238.03,0.00014246,2]
[356095905,1741895449071,-500.0,0.00014246,2]
[356095906,1741895449081,-587.13,0.00014246,2]
[356095907,1741895449091,-500.0,0.00014246,2]
[356095908,1741895449101,-500.0,0.00014246,2]
[356095909,1741895449110,-500.0,0.00014246,2]
[356095910,1741895449120,-16438.39,0.00014246,2]
[356095911,1741895449129,-2929.91,0.00014246,2]
[356095912,1741895449140,-500.0,0.00014246,2]
[356095913,1741895449150,-500.0,0.00014246,2]
[356095914,1741895449159,-500.0,0.00014246,2]
[356095915,1741895449169,-640.4,0.00014246,2]
[356095916,1741895449179,-500.0,0.00014246,2]
[356095917,1741895449189,-500.0,0.00014246,2]
[356095918,1741895449199,-500.0,0.00014246,2]
[356095919,1741895449208,-773.7,0.00014246,2]
[356095920,1741895449218,-500.0,0.00014246,2]
[356095921,1741895449228,-1407.77,0.00014246,2]
[356095922,1741895449238,-774.61,0.00014246,2]
[356095923,1741895449248,-500.0,0.00014246,2]
[356095924,1741895449258,-500.0,0.00014246,2]
[356095925,1741895449268,-500.0,0.00014246,2]
[356095926,1741895449278,-7830.3,0.00014246,2]
[356095927,1741895449288,-500.0,0.00014246,2]
[356095928,1741895449298,-500.0,0.00014246,2]
[356095929,1741895449308,-500.0,0.00014246,2]
[356095930,1741895449318,-500.0,0.00014246,2]
[356095931,1741895449328,-500.0,0.00014246,2]
[356095932,1741895449338,-500.0,0.00014246,2]
[356095933,1741895449348,-9190.56,0.00014246,2]
[356095934,1741895449358,-500.0,0.00014246,2]
[356095935,1741895449368,-1013.49,0.00014246,2]
[356095936,1741895449379,-1982.57,0.00014246,2]
[356095937,1741895449391,-500.0,0.00014246,2]
[356095938,1741895449401,-746.91,0.00014246,2]
[356095939,1741895449410,-3021.39,0.00014246,2]
[356095940,1741895449420,-500.0,0.00014246,2]
[356095941,1741895449430,-439.85,0.00014246,2]
[356095942,1741895449441,-500.0,0.00014246,2]
[356095943,1741895449451,-1287.74,0.00014246,2]
[356095944,1741895449461,-4445.03,0.00014246,2]
[356095945,1741895449471,-775.44,0.00014246,2]
[356095946,1741895449481,-1507.0,0.00014246,2]
[356095947,1741895449491,-500.0,0.00014246,2]
[356095948,1741895449501,-500.0,0.00014246,2]
[356095949,1741895449511,-500.0,0.00014246,2]
[356095950,1741895449520,-500.0,0.00014246,2]
[356095951,1741895449530,-500.0,0.00014246,2]
[356095952,1741895449540,-977.81,0.00014246,2]
[356095953,1741895449550,-1433.65,0.00014246,2]
[356095954,1741895449559,-2099.65,0.00014246,2]
[356095955,1741895449569,-2709.27,0.00014246,2]
[356095956,1741895449579,-924.33,0.00014246,2]
[356095957,1741895449590,-500.0,0.00014246,2]
[356095958,1741895449599,-500.0,0.00014246,2]
[356095959,1741895449610,-1668.01,0.00014246,2]
[356095960,1741895449619,-500.0,0.00014246,2]
[356095961,1741895449630,-739.15,0.00014246,2]
[356095962,1741895449641,-500.0,0.00014246,2]
[356095963,1741895449651,-500.0,0.00014246,2]
[356095964,1741895449660,-3426.15,0.00014246,2]
[356095965,1741895449672,-2374.88,0.00014246,2]
[356095966,1741895449683,-500.0,0.00014246,2]
[356095967,1741895449693,-500.0,0.00014246,2]
[356095968,1741895449703,-500.0,0.00014246,2]
[356095969,1741895449715,-500.0,0.00014246,2]
[356095970,1741895449725,-500.0,0.00014246,2]
[356095971,1741895449735,-2993.92,0.00014246,2]
[356095972,1741895449745,-621.35,0.00014246,2]
[356095973,1741895449756,-592.76290026,0.00014246,2]
[356095974,1741895449766,-500.0,0.00014246,2]
[356095975,1741895449776,-500.0,0.00014246,2]
[356095976,1741895449786,-865.09,0.00014246,2]
[356095977,1741895449795,-1460.92,0.00014246,2]
[356095978,1741895449805,-2157.7,0.00014246,2]
[356095979,1741895449814,-500.0,0.00014246,2]
[356095980,1741895449824,-1353.77,0.00014246,2]
[356095981,1741895449834,-715.9,0.00014246,2]
[356095982,1741895449844,-500.0,0.00014246,2]
[356095983,1741895449854,-1894.17,0.00014246,2]
[356095984,1741895449869,-1136.53,0.00014246,2]
[356095985,1741895449879,-1155.58,0.00014246,2]
[356095986,1741895449890,-500.0,0.00014246,2]
[356095987,1741895449900,-500.0,0.00014246,2]
[356095988,1741895449911,-2219.98,0.00014246,2]
[356095989,1741895449921,-505.40137362,0.00014246,2]
[356095990,1741895449931,-1213.44,0.00014246,2]
[356095991,1741895449941,-500.0,0.00014246,2]
[356095992,1741895449951,-500.0,0.00014246,2]
[356095993,1741895449961,-750.45,0.00014246,2]
[356095994,1741895449971,-471.54101336,0.00014246,2]
[356095995,1741895449981,-1078.32,0.00014246,2]
[356095996,1741895449992,-500.0,0.00014246,2]
[356095997,1741895450002,-2029.56,0.00014246,2]
[356095998,1741895450012,-500.0,0.00014246,2]
[356095999,1741895450022,-3019.25,0.00014246,2]
[356096000,1741895450032,-500.0,0.00014246,2]
[356096001,1741895450042,-7964.12,0.00014246,2]
[356096002,1741895450053,-1128.56,0.00014246,2]
[356096003,1741895450063,-670.28,0.00014246,2]
[356096004,1741895450073,-500.0,0.00014246,2]
[356096005,1741895450083,-500.0,0.00014246,2]
[356096006,1741895450094,-1156.29,0.00014246,2]
[356096007,1741895450104,-8340.21,0.00014246,2]
[356096008,1741895450114,-500.0,0.00014246,2]
[356096009,1741895450124,-605.7,0.00014246,2]
[356096010,1741895450134,-885.28,0.00014246,2]
[356096011,1741895450144,-3003.0,0.00014246,2]
[356096012,1741895450154,-719.93,0.00014246,2]
[356096013,1741895450164,-500.0,0.00014246,4]
[356096014,1741895450175,-500.0,0.00014246,2]
[356096015,1741895450185,-1155.93,0.00014246,2]
[356096016,1741895450195,-500.0,0.00014246,2]
[356096017,1741895450206,-500.0,0.00014246,2]
[356096018,1741895450215,-500.0,0.00014246,2]
[356096019,1741895450226,-2762.56,0.00014246,2]
[356096020,1741895450236,-754.97,0.00014246,2]
[356096021,1741895450246,-500.0,0.00014246,2]
[356096022,1741895450257,-500.0,0.00014246,2]
[356096023,1741895450267,-500.0,0.00014246,2]
[356096024,1741895450277,-1070.0,0.00014246,2]
[356096025,1741895450289,-500.0,0.00014246,2]
[356096026,1741895450299,-309.05,0.00014246,2]
[356096027,1741895450309,-862.8569753,0.00014249,2]
[356096028,1741895450319,-150.0,0.00014273,2]
[356096029,1741895450329,-894.78268339,0.00014304,2]
[356096030,1741895450339,-3794.38944408,0.00014314,2]
[356096031,1741895450349,-166.29068954,0.00014356,2]
[356096032,1741895450359,-927.88964268,0.00014359,2]
[356096033,1741895450370,-962.22155946,0.00014414,2]
[356096034,1741895450381,-997.82375716,0.00014469,2]
[356096035,1741895450392,-500.0,0.0001452,2]
[356096036,1741895450402,-500.0,0.0001452,2]
[356096037,1741895450413,-500.0,0.0001452,2]
[356096038,1741895450425,-500.0,0.0001452,2]
[356096039,1741895450435,-535.67491512,0.0001452,2]
[356096040,1741895450446,-500.0,0.0001452,2]
[356096041,1741895450456,-718.74,0.0001452,2]
[356096042,1741895450467,-500.0,0.0001452,2]
[356096043,1741895450477,-500.0,0.0001452,2]
[356096044,1741895450487,-631.84912451,0.0001452,2]
[356096045,1741895450497,-729.98,0.0001452,2]
[356096046,1741895450507,-330.44508676,0.0001452,2]
[356096047,1741895450517,-539.78044798,0.0001452,2]
[356096048,1741895450527,-500.0,0.0001452,2]
[356096049,1741895450537,-592.62,0.0001452,2]
[356096050,1741895450546,-500.0,0.0001452,2]
[356096051,1741895450556,-500.0,0.0001452,2]
[356096052,1741895450566,-500.0,0.0001452,2]
[356096053,1741895450576,-500.0,0.0001452,2]
[356096054,1741895450586,-500.0,0.0001452,2]
[356096055,1741895450596,-500.0,0.0001452,2]
[356096056,1741895450606,-500.0,0.0001452,2]
[356096057,1741895450616,-500.0,0.0001452,2]
[356096058,1741895450626,-915.94,0.0001452,2]
[356096059,1741895450636,-500.0,0.0001452,2]
[356096060,1741895450647,-500.0,0.0001452,2]
[356096061,1741895450658,-669.86,0.0001452,2]
[356096062,1741895450668,-500.0,0.0001452,2]
[356096063,1741895450683,-859.55,0.0001452,2]
[356096064,1741895450693,-500.0,0.0001452,2]
[356096065,1741895450703,-500.0,0.0001452,2]
[356096066,1741895450713,-500.0,0.0001452,2]
[356096067,1741895450725,-500.0,0.0001452,2]
[356096068,1741895450735,-500.0,0.0001452,2]
[356096069,1741895450745,-500.0,0.0001452,2]
[356096070,1741895450756,-500.0,0.0001452,2]
[356096071,1741895451030,-500.0,0.0001452,2]
[356096072,1741895451040,-500.0,0.0001452,2]
[356096073,1741895451050,-600.42,0.0001452,2]
[356096074,1741895451060,-565.82254267,0.0001452,2]
[356096075,1741895451070,-500.0,0.0001452,2]
[356096076,1741895451079,-500.0,0.0001452,2]
[356096077,1741895451089,-500.0,0.0001452,2]
[356096078,1741895451099,-579.78964526,0.0001452,2]
[356096079,1741895451108,-500.0,0.0001452,2]
[356096080,1741895451118,-500.0,0.0001452,2]
[356096081,1741895451128,-500.0,0.0001452,2]
[356096082,1741895451137,-500.0,0.0001452,2]
[356096083,1741895451150,-500.0,0.0001452,2]
[356096084,1741895451159,-500.0,0.0001452,2]
[356096085,1741895451169,-500.0,0.0001452,2]
[356096086,1741895451178,-500.0,0.0001452,2]
[356096087,1741895451188,-500.0,0.0001452,2]
[356096088,1741895451197,-500.0,0.0001452,2]
[356096089,1741895451207,-500.0,0.0001452,2]
[356096090,1741895451216,-500.0,0.0001452,2]
[356096091,1741895451225,-500.0,0.0001452,2]
[356096092,1741895451235,-500.0,0.0001452,2]
[356096093,1741895451245,-926.41,0.0001452,2]
[356096094,1741895451254,-592.81,0.0001452,2]
[356096095,1741895451264,-1073.35,0.0001452,2]
[356096096,1741895451274,-500.0,0.0001452,2]
[356096097,1741895451284,-500.0,0.0001452,2]
[356096098,1741895451294,-500.0,0.0001452,2]
[356096099,1741895451303,-500.0,0.0001452,2]
[356096100,1741895451314,-500.0,0.0001452,2]
[356096101,1741895451323,-500.0,0.0001452,2]
[356096102,1741895451333,-151.45214785,0.0001452,2]
[356096103,1741895451343,-500.0,0.0001452,2]
[356096104,1741895451353,-500.0,0.0001452,2]
[356096105,1741895451362,-500.0,0.0001452,2]
[356096106,1741895451371,-500.0,0.0001452,2]
[356096107,1741895451381,-802.61,0.0001452,2]
[356096108,1741895451391,-565.91,0.0001452,2]
[356096109,1741895451401,-244.38992033,0.0001452,2]
[356096110,1741895451411,-696.1,0.0001452,2]
[356096111,1741895451421,-670.19,0.0001452,2]
[356096112,1741895451431,-500.0,0.0001452,2]
[356096113,1741895451442,-500.0,0.0001452,2]
[356096114,1741895451452,-1900.02,0.0001452,2]
[356096115,1741895451462,-555.45,0.0001452,2]
[356096116,1741895451471,-500.0,0.0001452,2]
[356096117,1741895451480,-510.47,0.0001452,2]
[356096118,1741895451490,-500.0,0.0001452,2]
[356096119,1741895451500,-456.06955114,0.0001452,2]
[356096120,1741895451509,-500.0,0.0001452,2]
[356096121,1741895451519,-993.78,0.0001452,2]
[356096122,1741895451528,-500.0,0.0001452,2]
[356096123,1741895451538,-500.0,0.0001452,2]
[356096124,1741895451547,-500.0,0.0001452,2]
[356096125,1741895451557,-500.0,0.0001452,2]
[356096126,1741895451566,-500.0,0.0001452,2]
[356096127,1741895451576,-500.0,0.0001452,2]
[356096128,1741895451585,-546.70075741,0.0001452,2]
[356096129,1741895451595,-500.0,0.0001452,2]
[356096130,1741895451604,-500.0,0.0001452,2]
[356096131,1741895451614,-1320.95,0.0001452,2]
[356096132,1741895451624,-500.0,0.0001452,2]
[356096133,1741895451633,-1672.28,0.0001452,2]
[356096134,1741895451644,-380.51381182,0.0001452,2]
[356096135,1741895451654,-500.0,0.0001452,2]
[356096136,1741895451664,-569.53915223,0.0001452,2]
[356096137,1741895451678,-500.0,0.0001452,2]
[356096138,1741895451687,-500.0,0.0001452,2]
[356096139,1741895451696,-500.0,0.0001452,2]
[356096140,1741895451707,-500.0,0.0001452,2]
[356096141,1741895451716,-985.66,0.0001452,2]
[356096142,1741895451725,-500.0,0.0001452,2]
[356096143,1741895451735,-500.0,0.0001452,2]
[356096144,1741895451744,-500.0,0.0001452,2]
[356096145,1741895451755,-500.0,0.0001452,2]
[356096146,1741895451765,-500.0,0.0001452,2]
[356096147,1741895451774,-1120.14,0.0001452,2]
[356096148,1741895451783,-500.0,0.0001452,2]
[356096149,1741895451792,-782.0,0.0001452,2]
[356096150,1741895451802,-500.0,0.0001452,2]
[356096151,1741895451811,-1853.38,0.0001452,2]
[356096152,1741895451820,-500.0,0.0001452,2]
[356096153,1741895451830,-500.0,0.0001452,2]
[356096154,1741895451839,-500.0,0.0001452,2]
[356096155,1741895451848,-515.12014017,0.0001452,2]
[356096156,1741895451858,-500.0,0.0001452,2]
[356096157,1741895451867,-500.0,0.0001452,2]
[356096158,1741895451876,-500.0,0.0001452,2]
[356096159,1741895451885,-1032.23,0.0001452,2]
[356096160,1741895451896,-500.0,0.0001452,2]
[356096161,1741895451905,-500.0,0.0001452,2]
[356096162,1741895451914,-500.0,0.0001452,2]
[356096163,1741895451923,-500.0,0.0001452,2]
[356096164,1741895451933,-500.0,0.0001452,2]
[356096165,1741895451942,-919.78,0.0001452,2]
[356096166,1741895451951,-500.0,0.0001452,2]
[356096167,1741895451960,-500.0,0.0001452,2]
[356096168,1741895451969,-567.13,0.0001452,2]
[356096169,1741895451978,-500.0,0.0001452,2]
[356096170,1741895451987,-500.0,0.0001452,2]
[356096171,1741895451996,-504.76,0.0001452,2]
[356096172,1741895452006,-1477.97,0.0001452,2]
[356096173,1741895452015,-814.92,0.0001452,2]
[356096174,1741895452025,-500.0,0.0001452,2]
[356096175,1741895452035,-716.89,0.0001452,2]
[356096176,1741895452044,-500.0,0.0001452,2]
[356096177,1741895452054,-500.0,0.0001452,2]
[356096178,1741895452063,-500.0,0.0001452,2]
[356096179,1741895452072,-500.0,0.0001452,2]
[356096180,1741895452081,-2435.2,0.0001452,2]
[356096181,1741895452091,-500.0,0.0001452,2]
[356096182,1741895452100,-1122.89,0.0001452,2]
[356096183,1741895452110,-500.0,0.0001452,2]
[356096184,1741895452119,-881.46,0.0001452,2]
[356096185,1741895452129,-815.2,0.0001452,2]
[356096186,1741895452138,-500.0,0.0001452,2]
[356096187,1741895452149,-500.0,0.0001452,2]
[356096188,1741895452159,-500.0,0.0001452,2]
[356096189,1741895452169,-364.85714955,0.0001452,2]
[356096190,1741895452178,-500.0,0.0001452,2]
[356096191,1741895452188,-519.08887907,0.0001452,2]
[356096192,1741895452197,-977.86,0.0001452,2]
[356096193,1741895452206,-985.12,0.0001452,2]
[356096194,1741895452215,-500.0,0.0001452,2]
[356096195,1741895452225,-500.0,0.0001452,2]
[356096196,1741895452234,-604.51,0.0001452,2]
[356096197,1741895452243,-797.13,0.0001452,2]
[356096198,1741895452252,-500.0,0.0001452,2]
[356096199,1741895452262,-500.0,0.0001452,2]
[356096200,1741895452271,-500.0,0.0001452,2]
[356096201,1741895452281,-900.08,0.0001452,2]
[356096202,1741895452290,-500.0,0.0001452,2]
[356096203,1741895452299,-500.0,0.0001452,2]
[356096204,1741895452308,-500.0,0.0001452,2]
[356096205,1741895452317,-500.0,0.0001452,2]
[356096206,1741895452328,-500.0,0.0001452,2]
[356096207,1741895452337,-1033.41,0.0001452,2]
[356096208,1741895452347,-987.13,0.0001452,2]
[356096209,1741895452356,-500.0,0.0001452,2]
[356096210,1741895452365,-302.40452919,0.0001452,2]
[356096211,1741895452374,-500.0,0.0001452,2]
[356096212,1741895452384,-500.0,0.0001452,2]
[356096213,1741895452394,-1031.99,0.0001452,2]
[356096214,1741895452403,-574.29,0.0001452,2]
[356096215,1741895452413,-500.0,0.0001452,2]
[356096216,1741895452422,-500.0,0.0001452,2]
[356096217,1741895452432,-500.0,0.0001452,2]
[356096218,1741895452443,-500.0,0.0001452,2]
[356096219,1741895452452,-551.04,0.0001452,2]
[356096220,1741895452462,-500.0,0.0001452,2]
[356096221,1741895452472,-1471.9,0.0001452,2]
[356096222,1741895452481,-500.0,0.0001452,2]
[356096223,1741895452491,-505.09,0.0001452,2]
[356096224,1741895452501,-542.66380525,0.0001452,2]
[356096225,1741895452510,-500.0,0.0001452,2]
[356096226,1741895452520,-1118.78,0.0001452,2]
[356096227,1741895452529,-500.0,0.0001452,2]
[356096228,1741895452539,-500.0,0.0001452,2]
[356096229,1741895452548,-500.0,0.0001452,2]
[356096230,1741895452558,-500.0,0.0001452,2]
[356096231,1741895452567,-500.0,0.0001452,2]
[356096232,1741895452577,-500.0,0.0001452,2]
[356096233,1741895452586,-1105.79,0.0001452,2]
[356096234,1741895452596,-500.0,0.0001452,2]
[356096235,1741895452605,-500.0,0.0001452,2]
[356096236,1741895452615,-191.72464498,0.0001452,2]
[356096237,1741895452625,-698.96,0.0001452,2]
[356096238,1741895452635,-500.0,0.0001452,2]
[356096239,1741895452646,-500.0,0.0001452,2]
[356096240,1741895452655,-500.0,0.0001452,2]
[356096241,1741895452665,-500.0,0.0001452,2]
[356096242,1741895452675,-2274.07,0.0001452,2]
[356096243,1741895452686,-500.0,0.0001452,2]
[356096244,1741895452697,-500.0,0.0001452,2]
[356096245,1741895452708,-500.0,0.0001452,2]
[356096246,1741895452719,-616.23555912,0.0001452,2]
[356096247,1741895452731,-1049.97,0.0001452,2]
[356096248,1741895452743,-1181.55,0.0001452,2]
[356096249,1741895452755,-1004.4,0.0001452,2]
[356096250,1741895452765,-500.0,0.0001452,2]
[356096251,1741895452774,-1924.06,0.0001452,2]
[356096252,1741895452783,-500.0,0.0001452,2]
[356096253,1741895452793,-1127.21,0.0001452,2]
[356096254,1741895452802,-272.04006334,0.0001452,2]
[356096255,1741895452812,-1448.48,0.0001452,2]
[356096256,1741895452821,-500.0,0.0001452,2]
[356096257,1741895452832,-1754.72,0.0001452,2]
[356096258,1741895452842,-500.0,0.0001452,2]
[356096259,1741895452851,-677.35,0.0001452,2]
[356096260,1741895452862,-500.0,0.0001452,2]
[356096261,1741895452871,-500.0,0.0001452,2]
[356096262,1741895452882,-295.61159738,0.0001452,2]
[356096263,1741895452893,-500.0,0.0001452,2]
[356096264,1741895452903,-500.0,0.0001452,2]
[356096265,1741895452913,-2165.89,0.0001452,2]
[356096266,1741895452922,-1059.57,0.0001452,2]
[356096267,1741895452932,-500.0,0.0001452,2]
[356096268,1741895452942,-500.0,0.0001452,2]
[356096269,1741895452952,-500.0,0.0001452,2]
[356096270,1741895452961,-500.0,0.0001452,2]
[356096271,1741895452971,-500.0,0.0001452,2]
[356096272,1741895452980,-2402.59,0.0001452,2]
[356096273,1741895452989,-500.0,0.0001452,2]
[356096274,1741895452999,-500.0,0.0001452,2]
[356096275,1741895453008,-582.96,0.0001452,2]
[356096276,1741895453017,-500.0,0.0001452,2]
[356096277,1741895453026,-500.0,0.0001452,2]
[356096278,1741895453036,-500.0,0.0001452,2]
[356096279,1741895453047,-500.0,0.0001452,2]
[356096280,1741895453058,-1430.69,0.0001452,2]
[356096281,1741895453067,-500.0,0.0001452,2]
[356096282,1741895453077,-500.0,0.0001452,2]
[356096283,1741895453087,-500.0,0.0001452,2]
[356096284,1741895453096,-500.0,0.0001452,2]
[356096285,1741895453106,-740.21,0.0001452,2]
[356096286,1741895453116,-573.0,0.0001452,2]
[356096287,1741895453125,-987.01,0.0001452,2]
[356096288,1741895453135,-500.0,0.0001452,2]
[356096289,1741895453145,-15058.52,0.0001452,2]
[356096290,1741895453155,-500.0,0.0001452,2]
[356096291,1741895453166,-500.0,0.0001452,2]
[356096292,1741895453176,-744.73,0.0001452,2]
[356096293,1741895453186,-500.0,0.0001452,2]
[356096294,1741895453195,-500.0,0.0001452,2]
[356096295,1741895453205,-500.0,0.0001452,2]
[356096296,1741895453214,-500.0,0.0001452,2]
[356096297,1741895453224,-500.0,0.0001452,2]
[356096298,1741895453234,-1830.51,0.0001452,2]
[356096299,1741895453243,-500.0,0.0001452,2]
[356096300,1741895453253,-632.64,0.0001452,2]
[356096301,1741895453262,-11604.78,0.0001452,2]